bitfinex/quotes_ETHUSD_20250519
["timestamp","ask_amount","ask_price","bid_price","bid_amount"]
[1747664862665,2.0994,2430.8,2430.1,1.5756]
[1747664862865,0.55,2430.6,2430.1,1.5756]
[1747664863063,4.11488766,2430.2,2430.1,0.05]
[1747664863280,9.288,2430.2,2430.1,0.05]
[1747664864288,9.288,2430.2,2430.1,5.72605699]
[1747664865293,9.288,2430.2,2430.1,1.611]
[1747664865714,9.60328752,2430.2,2430.1,5.72605699]
[1747664865923,9.288,2430.2,2430.1,5.72605699]
[1747664869007,9.288,2430.2,2430.1,1.611]
[1747664869194,9.288,2430.2,2430.1,0.05]
[1747664869695,9.288,2430.2,2430.1,4.16505699]
[1747664872226,19.218,2430.5,2430.4,5.65644904]
[1747664873587,9.94,2430.5,2430.3,4.11467026]
[1747664873787,1.5914,2430.4,2430.1,0.05]
[1747664874027,9.94,2430.5,2430.1,4.16497867]
[1747664874185,9.94,2430.5,2430.2,4.1148117]
[1747664874387,9.94,2430.5,2430.2,5.72730633]
[1747664874623,9.94,2430.5,2430.3,4.11455058]
[1747664874827,9.275,2430.4,2430.3,4.11464591]
[1747664875029,9.275,2430.4,2430.2,5.72729897]
[1747664875825,9.275,2430.4,2430.2,5.72730242]
[1747664876031,9.275,2430.4,2430.3,4.11471834]
[1747664876532,9.273,2430.8,2430.7,4.11393887]
[1747664876703,9.273,2430.8,2430.6,4.11411939]
[1747664877220,9.273,2430.8,2430.5,4.1142791]
[1747664877533,9.273,2430.8,2430.5,4.114284]
[1747664877704,9.273,2430.8,2430.6,4.11419765]
[1747664877904,13.38691822,2430.8,2430.4,4.11452792]
[1747664878105,4.11413146,2430.7,2430.2,1.6125]
[1747664878319,5.64221822,2430.6,2430.1,0.05]
[1747664878525,5.64221605,2430.6,2430.1,4.16500233]
[1747664878722,5.64221605,2430.6,2430.2,4.11480796]
[1747664878922,9.273,2430.8,2430.4,4.1144638]
[1747664879229,13.38688567,2430.8,2430.3,4.11462606]
[1747664879623,9.273,2430.8,2430.4,4.1144293]
[1747664879818,13.38687528,2430.8,2430.4,4.1144293]
[1747664880033,4.11407007,2430.7,2430.1,4.16490731]
[1747664880235,9.273,2430.8,2430.4,4.11453152]
[1747664880402,4.11430663,2430.6,2430.2,0.12854993]
[1747664880804,1.5383,2430.5,2430.1,4.16500251]
[1747664881298,4.11427933,2430.6,2430.1,0.05]
[1747664881616,4.11432125,2430.6,2430.1,4.16503241]
[1747664881812,4.11445879,2430.5,2430.1,4.16504521]
[1747664882011,9.292,2430.4,2430.1,4.16499217]
[1747664882317,9.266,2430.3,2430.2,0.12855808]
[1747664882518,9.266,2430.3,2430.2,4.24344574]
[1747664882713,9.266,2430.3,2430.2,0.12855808]
[1747664884134,25.40491834,2430.3,2430.2,0.12855808]
[1747664884340,4.66488766,2430.2,2430.1,0.05]
[1747664884541,14.64595581,2430.2,2430.1,0.05]
[1747664884716,9.94,2430.2,2430.1,0.05]
[1747664887141,24.19728766,2430.2,2430.1,0.05]
[1747664888431,24.89728766,2430.2,2430.1,0.05]
[1747664889143,4.11628086,2429.4,2429.1,0.05]
[1747664889315,13.37350374,2429.3,2429.1,0.05]
[1747664889841,9.257,2429.3,2429.1,0.05]
[1747664890348,9.257,2429.3,2429.1,4.16662997]
[1747664890646,9.257,2429.3,2429.1,0.05]
[1747664891425,13.37341972,2429.3,2429.1,0.05]
[1747664891626,9.257,2429.3,2429.1,0.05]
[1747664891826,13.37350618,2429.3,2429.1,0.05]
[1747664892028,4.11658159,2429.2,2429.1,0.05]
[1747664892437,13.37348032,2429.3,2429.1,0.05]
[1747664892853,9.257,2429.3,2429.1,0.05]
[1747664893425,8.0,2429.8,2429.1,0.05]
[1747664893426,9.254,2429.9,2429.3,4.11641213]
[1747664893655,9.254,2429.9,2429.1,0.09116621]
[1747664893656,1.5258,2429.6,2429.1,0.05]
[1747664893853,0.55,2429.5,2429.1,0.05]
[1747664894060,4.11649127,2429.3,2429.1,0.05]
[1747664894226,9.252,2429.2,2429.1,0.05]
[1747664894432,13.36858159,2429.2,2429.1,0.05]
[1747664894960,14.97288159,2429.2,2429.1,0.05]
[1747664895163,15.52288159,2429.2,2429.1,0.05]
[1747664895362,11.4063,2429.2,2429.1,0.05]
[1747664895529,10.8563,2429.2,2429.1,0.05]
[1747664895732,14.97288159,2429.2,2429.1,0.05]
[1747664895961,9.252,2429.2,2429.1,0.05]
[1747664896475,13.36858159,2429.2,2429.1,0.05]
[1747664896767,14.92508159,2429.2,2429.1,0.05]
[1747664896977,10.8085,2429.2,2429.1,0.05]
[1747664897283,9.249,2429.2,2429.1,0.05]
[1747664898076,9.248,2429.2,2429.1,4.16675106]
[1747664901132,10.9017,2429.2,2429.1,0.05]
[1747664901356,9.248,2429.2,2429.1,0.05]
[1747664901541,18.5,2429.2,2429.1,4.16675106]
[1747664902148,18.5,2429.2,2429.1,0.05]
[1747664902543,18.5,2429.2,2429.1,4.16675106]
[1747664903538,18.5,2429.2,2429.1,0.05]
[1747664903759,18.5,2429.2,2429.1,4.16675106]
[1747664904081,20.53312161,2429.2,2429.1,0.05]
[1747664904390,18.5,2429.2,2429.1,0.05]
[1747664904571,19.05,2429.2,2429.1,0.05]
[1747664904773,25.1997032,2429.2,2429.1,0.05]
[1747664904941,25.8997032,2429.2,2429.1,0.05]
[1747664906541,27.1941032,2429.2,2429.1,0.05]
[1747664908061,25.16098159,2429.2,2429.1,0.05]
[1747664908579,20.4944,2429.2,2429.1,0.05]
[1747664908744,19.2,2429.2,2429.1,0.05]
[1747664908944,29.14,2429.2,2429.1,0.05]
[1747664909570,0.7,2429.2,2429.1,1.3289]
[1747664909744,0.7,2429.2,2429.1,5.44565106]
[1747664909939,9.234,2429.4,2429.3,4.11628505]
[1747664910189,9.234,2429.4,2429.1,2.28515489]
[1747664910352,9.234,2429.4,2429.3,4.11641213]
[1747664911855,9.234,2429.4,2429.2,4.11645597]
[1747664912083,9.234,2429.4,2429.3,4.11641213]
[1747664913181,9.234,2429.4,2429.3,5.07258894]
[1747664913482,9.234,2429.4,2429.3,5.20118389]
[1747664913690,9.234,2429.4,2429.3,4.24500708]
[1747664914055,19.169,2429.6,2429.5,4.11607326]
[1747664914259,9.94,2429.6,2429.5,5.38087326]
[1747664914459,9.94,2429.6,2429.5,5.50946821]
[1747664914905,19.8129739,2430.2,2429.5,5.50946821]
[1747664914906,9.228,2429.9,2429.8,4.11556506]
[1747664915093,11.2027,2430.6,2429.9,1.2648]
[1747664915261,9.228,2430.5,2430.0,4.11522633]
[1747664915463,9.228,2430.5,2430.4,4.11454904]
[1747664915861,9.228,2430.5,2430.3,1.389]
[1747664916190,9.228,2430.5,2430.3,4.1146091]
[1747664916394,9.228,2430.5,2430.4,5.49154904]
[1747664917367,9.228,2430.5,2430.1,4.11496418]
[1747664917578,9.228,2430.5,2430.2,4.11487904]
[1747664917777,9.228,2430.5,2430.3,4.11471783]
[1747664917990,0.31074986,2430.6,2430.0,1.2845]
[1747664918163,9.223,2430.9,2430.5,1.2845]
[1747664918363,0.04106815,2430.8,2430.3,1.2845]
[1747664918569,4.11396774,2430.8,2430.4,4.11454148]
[1747664918987,4.1139946,2430.8,2430.4,4.11450112]
[1747664919182,4.11407193,2430.7,2430.3,1.2845]
[1747664919516,4.11396625,2430.8,2430.3,5.39914722]
[1747664919716,4.11396625,2430.8,2430.4,4.11454472]
[1747664920014,9.52597262,2430.9,2430.4,4.11454472]
[1747664920015,9.52597262,2430.9,2430.4,4.11453453]
[1747664920220,13.63976011,2430.9,2430.4,4.11453453]
[1747664920421,13.63976011,2430.9,2430.1,1.2682]
[1747664920422,4.11387197,2430.8,2430.1,1.2682]
[1747664920609,4.1141682,2430.7,2430.2,4.11479841]
[1747664921285,9.52597262,2430.9,2430.1,5.38321848]
[1747664921286,9.52597262,2430.9,2430.5,4.11424014]
[1747664921479,13.63975322,2430.9,2430.4,4.11444815]
[1747664921679,9.52597262,2430.9,2430.5,4.11425364]
[1747664921982,4.1138904,2430.8,2430.1,1.2682]
[1747664922181,4.11397737,2430.8,2430.1,1.2682]
[1747664922441,9.52597262,2430.9,2430.3,4.11459518]
[1747664922626,4.11421211,2430.6,2430.2,4.11486009]
[1747664922817,4.11417138,2430.7,2430.2,4.11486009]
[1747664923122,9.52597262,2430.9,2430.1,1.2682]
[1747664923123,13.6396859,2430.9,2430.1,1.2682]
[1747664923318,13.6396859,2430.9,2430.4,4.11439169]
[1747664923521,4.11404982,2430.7,2430.3,4.1146317]
[1747664923696,4.11426859,2430.6,2430.1,1.2682]
[1747664923902,13.63975862,2430.9,2430.4,4.11452987]
[1747664924086,9.52597262,2430.9,2430.5,4.11428344]
[1747664924282,9.52597262,2430.9,2430.1,5.3832071]
[1747664924618,4.11394603,2430.8,2430.3,4.11462254]
[1747664924789,4.11400665,2430.8,2430.2,4.65311522]
[1747664924988,13.63975135,2430.9,2430.3,4.11470866]
[1747664925221,4.11393453,2430.8,2430.3,4.11470866]
[1747664925524,4.11393453,2430.8,2430.4,4.11453807]
[1747664925525,4.1138723,2430.8,2430.4,4.11453807]
[1747664925722,9.52597262,2430.9,2430.1,1.2682]
[1747664925918,0.04106815,2430.8,2430.1,1.2682]
[1747664926239,4.11410652,2430.7,2430.3,4.11470416]
[1747664926394,1.43916815,2430.6,2430.1,5.3832471]
[1747664926593,4.11444395,2430.5,2430.1,5.3832471]
[1747664926793,9.21,2430.4,2430.1,5.3832471]
[1747664927433,19.15,2430.4,2430.1,5.3832471]
[1747664927633,19.15,2430.4,2430.2,4.11488006]
[1747664928431,19.15,2430.4,2430.3,4.11471834]
[1747664928753,19.15,2430.4,2430.2,4.11480231]
[1747664928962,19.15,2430.4,2430.2,4.11481534]
[1747664930334,19.15,2430.4,2430.3,4.11471834]
[1747664931457,9.94,2430.4,2430.3,4.11471834]
[1747664932370,9.202,2430.7,2430.4,4.11454904]
[1747664932571,9.202,2430.7,2430.6,4.11421048]
[1747664932867,9.202,2430.7,2430.3,5.06441224]
[1747664933026,9.202,2430.7,2430.4,4.11439403]
[1747664933361,9.202,2430.7,2430.5,4.11434213]
[1747664933935,9.202,2430.7,2430.6,4.11421048]
[1747664934331,9.2,2430.8,2430.3,4.1146944]
[1747664934533,9.2,2430.8,2430.6,4.11413339]
[1747664934735,9.199,2430.8,2430.5,5.41115097]
[1747664934972,9.199,2430.8,2430.7,4.11404122]
[1747664935268,9.199,2430.8,2430.6,4.11411338]
[1747664935474,9.198,2431.2,2430.5,1.2968]
[1747664935632,9.198,2431.3,2430.5,1.2968]
[1747664935832,9.198,2431.3,2431.1,4.11326172]
[1747664936046,9.198,2431.3,2431.2,4.11319512]
[1747664936266,9.198,2431.3,2431.1,4.11324323]
[1747664936472,9.198,2431.3,2431.2,4.11319512]
[1747664936668,1.2983,2431.6,2431.0,1.3501]
[1747664936871,0.30685463,2431.7,2431.2,4.11309289]
[1747664937166,4.11246522,2431.7,2431.2,4.11309289]
[1747664937658,10.5412,2431.8,2431.0,1.3501]
[1747664937853,4.11261334,2431.6,2431.0,1.3501]
[1747664938167,10.5412,2431.8,2431.1,4.11324221]
[1747664938357,4.11242904,2431.7,2431.2,4.11307808]
[1747664938555,10.5412,2431.8,2431.4,4.11285512]
[1747664938864,14.96716565,2431.8,2431.4,4.11285512]
[1747664939073,9.192,2431.7,2431.1,4.11320991]
[1747664939235,13.30446268,2431.7,2431.2,4.11303874]
[1747664939435,9.192,2431.6,2431.2,4.11303874]
[1747664939772,9.192,2431.6,2431.3,4.11293422]
[1747664939935,9.192,2431.6,2431.4,4.11283511]
[1747664940259,9.192,2431.6,2431.2,4.1130408]
[1747664940460,9.192,2431.6,2431.3,4.11301673]
[1747664940753,9.192,2431.6,2431.2,4.11306523]
[1747664940958,9.192,2431.6,2431.3,4.11299419]
[1747664941391,9.192,2431.6,2431.4,4.11277883]
[1747664941588,0.31373395,2431.8,2431.5,5.45027225]
[1747664941790,9.94,2431.8,2431.7,4.11234938]
[1747664942180,9.238,2431.9,2431.7,4.11234938]
[1747664942486,0.05,2431.9,2431.5,1.3377]
[1747664942665,0.05,2431.9,2431.8,4.11218027]
[1747664942997,0.05,2431.9,2431.7,4.11221714]
[1747664943150,0.05,2431.9,2431.7,4.11224705]
[1747664943351,0.05,2431.9,2431.5,1.3377]
[1747664943662,0.05,2431.9,2431.6,4.1125165]
[1747664943872,0.05,2431.9,2431.7,4.11234577]
[1747664944074,0.05,2431.9,2431.8,4.11218027]
[1747664945181,0.05,2431.9,2431.8,4.88718026]
[1747664945773,0.05,2431.9,2431.8,6.19038026]
[1747664946671,0.05,2431.9,2431.8,6.54768167]
[1747664947779,0.05,2431.9,2431.8,6.67921267]
[1747664948185,0.05,2431.9,2431.8,6.72032285]
[1747664948387,0.05,2432.9,2432.8,4.11048997]
[1747664948714,0.05,2432.9,2432.8,5.90313897]
[1747664950080,0.05,2432.9,2432.8,4.11048997]
[1747664950913,0.05,2432.9,2432.7,4.110568]
[1747664951211,0.05,2432.9,2432.8,4.11048997]
[1747664953822,0.05,2432.9,2432.6,4.11082792]
[1747664954025,0.05,2432.9,2432.7,4.11062872]
[1747664954918,0.05,2432.9,2432.8,4.11048997]
[1747664955587,0.05,2432.9,2432.6,4.11075294]
[1747664955791,0.05,2432.9,2432.5,5.39158446]
[1747664956088,0.05,2432.9,2432.8,4.11048997]
[1747664957204,0.05,2432.9,2432.8,4.9326011]
[1747664958027,0.05,2432.9,2432.8,6.2103011]
[1747664959499,0.05,2432.9,2432.8,4.11048997]
[1747664962035,0.05,2432.9,2432.8,4.1515897]
[1747664962330,0.05,2432.9,2432.8,4.11048997]
[1747664966336,0.05,2432.9,2432.8,5.45058997]
[1747664966535,0.05,2432.9,2432.8,13.57898134]
[1747664966716,0.05,2432.9,2432.8,15.5761745]
[1747664967112,0.05,2432.9,2432.8,15.7076432]
[1747664974347,0.05,2432.9,2432.8,16.2576432]
[1747664975002,0.05,2433.9,2433.8,4.10880105]
[1747664975943,0.05,2433.9,2433.8,4.23715974]
[1747664976146,0.05,2433.9,2433.8,5.07176852]
[1747664976721,0.05,2433.9,2433.8,6.41386852]
[1747664977108,0.05,2433.9,2433.8,6.6427075]
[1747664977320,0.05,2433.9,2433.8,6.7741762]
[1747664977527,0.05,2433.9,2433.8,5.4320762]
[1747664978139,0.05,2433.9,2433.8,0.48866637]
[1747664978333,1.3947,2433.9,2433.8,0.48866637]
[1747664978745,1.3947,2433.9,2433.8,0.25982739]
[1747664978959,3.42073616,2433.9,2433.5,4.10928583]
[1747664979239,9.126,2433.8,2433.5,4.10928583]
[1747664979460,9.126,2433.8,2433.6,0.12837806]
[1747664980041,9.126,2433.8,2433.7,4.10896988]
[1747664981359,9.122,2433.8,2433.7,4.10885444]
[1747664981559,1.3947,2433.9,2433.8,4.10880105]
[1747664981759,10.5167,2433.9,2433.8,4.10880105]
[1747664981958,9.171,2433.9,2433.8,4.10880105]
[1747664982775,9.171,2433.9,2433.3,4.10963029]
[1747664982930,9.171,2433.9,2433.7,4.10895042]
[1747664983329,9.171,2433.9,2433.5,4.10921919]
[1747664983670,1.39456815,2433.8,2433.4,4.33871863]
[1747664983872,1.39456815,2433.8,2433.5,4.10928824]
[1747664984036,1.3535,2433.8,2433.5,4.10917863]
[1747664984236,1.3535,2433.8,2433.6,4.23744943]
[1747664984462,1.3535,2433.8,2433.6,0.12837786]
[1747664984873,1.3535,2433.8,2433.5,4.10917863]
[1747664985571,1.3535,2433.8,2433.2,4.10981423]
[1747664985770,1.3535,2433.8,2433.2,4.52079565]
[1747664985971,1.3535,2433.8,2433.6,4.10910745]
[1747664986162,1.3535,2433.8,2433.6,4.10898988]
[1747664987920,5.46230105,2433.8,2433.7,0.12837633]
[1747664988199,15.40230105,2433.8,2433.4,4.10941175]
[1747664988418,11.2935,2433.8,2433.5,4.10928426]
[1747664988553,15.402322,2433.8,2433.5,0.12838579]
[1747664988747,24.521322,2433.8,2433.3,4.10957629]
[1747664988952,24.521322,2433.8,2433.4,4.10946409]
[1747664989147,20.4125,2433.8,2433.5,4.10928441]
[1747664989492,20.4125,2433.8,2433.2,4.10981423]
[1747664989780,9.11,2433.7,2433.3,0.22962044]
[1747664989988,9.11,2433.7,2433.6,4.10913872]
[1747664990490,20.4125,2433.8,2433.7,4.10896988]
[1747664990687,29.5205,2433.8,2433.7,4.10896988]
[1747664990988,29.5205,2433.8,2433.6,4.10904079]
[1747664991687,29.5205,2433.8,2433.7,4.10896988]
[1747664992186,28.165,2433.8,2433.7,4.10896988]
[1747664992389,28.165,2433.8,2433.7,5.05914194]
[1747664992986,0.05,2433.9,2433.8,4.10880105]
[1747664993309,0.05,2433.9,2433.8,5.60057204]
[1747664993456,0.05,2433.9,2433.8,5.83018522]
[1747664993656,0.05,2433.9,2433.8,6.90628084]
[1747664997060,0.05,2433.9,2433.8,5.54288084]
[1747664999141,0.05,2433.9,2433.8,5.67431269]
[1747664999999,0.05,2433.9,2433.8,5.5459417]
[1747665000195,0.05,2433.9,2433.8,5.67468513]
[1747665000386,0.05,2433.9,2433.8,5.54633571]
[1747665000587,0.05,2433.9,2433.8,15.0308833]
[1747665000838,0.05,2433.9,2433.8,14.90253571]
[1747665001002,0.05,2433.9,2433.8,15.0308754]
[1747665001410,0.05,2433.9,2433.8,5.6746754]
[1747665001743,0.05,2433.9,2433.8,4.59857978]
[1747665002311,0.05,2433.9,2433.8,4.47024009]
[1747665002498,0.05,2433.9,2433.8,4.59859033]
[1747665002699,0.05,2433.9,2433.8,4.5985868]
[1747665002921,0.05,2433.9,2433.8,4.47024009]
[1747665003123,0.05,2433.9,2433.8,6.50314396]
[1747665003524,0.05,2433.9,2433.8,7.83434396]
[1747665003726,0.05,2433.9,2433.8,15.83434396]
[1747665003923,0.05,2433.9,2433.8,16.38434396]
[1747665004089,0.05,2433.9,2433.8,25.47034396]
[1747665004604,0.05,2433.9,2433.8,25.4703963]
[1747665004804,0.05,2433.9,2433.8,25.24038432]
[1747665005006,0.05,2434.9,2434.8,4.10711352]
[1747665005391,0.05,2434.9,2434.8,14.12001703]
[1747665006032,0.05,2434.9,2434.8,14.34998091]
[1747665006239,0.05,2434.9,2434.8,6.34995546]
[1747665006396,0.05,2434.9,2434.8,4.59632083]
[1747665006804,0.05,2434.9,2434.8,4.3668238]
[1747665007211,0.05,2434.9,2434.8,4.36684963]
[1747665007533,0.05,2434.9,2434.8,0.13143185]
[1747665007747,9.166,2434.9,2434.8,0.2597364]
[1747665007910,9.166,2434.9,2434.7,4.10726973]
[1747665008107,9.166,2434.9,2434.4,4.10777329]
[1747665008108,1.3456,2434.7,2434.4,4.10777329]
[1747665008410,9.078,2434.6,2434.4,4.1076789]
[1747665008595,9.078,2434.6,2434.5,4.10761963]
[1747665009034,9.078,2434.6,2434.2,4.10801007]
[1747665009232,9.078,2434.6,2433.8,1.90463871]
[1747665009410,9.078,2434.6,2434.3,4.10786651]
[1747665009822,9.078,2434.6,2434.4,4.10777143]
[1747665010024,13.18548153,2434.6,2433.7,1.3443]
[1747665010209,1.3562,2434.3,2433.5,0.37106175]
[1747665010537,1.3562,2434.3,2433.6,0.22966151]
[1747665010538,9.15706815,2434.2,2433.6,0.22966151]
[1747665010732,9.075,2434.1,2433.7,4.10885067]
[1747665010922,1.3378,2433.9,2433.5,4.10919553]
[1747665011121,0.04106815,2433.8,2432.8,1.303]
[1747665011324,9.116,2433.7,2433.6,4.10913872]
[1747665012033,1.3378,2433.9,2433.7,4.10886622]
[1747665012233,18.188,2434.0,2433.9,4.10863223]
[1747665014437,18.188,2434.0,2433.4,5.44751752]
[1747665014612,18.188,2434.0,2433.9,4.10863223]
[1747665015424,18.188,2434.0,2433.5,4.10930758]
[1747665015601,18.188,2434.0,2433.1,9.3222]
[1747665015933,1.3923,2433.8,2433.6,4.10913128]
[1747665017239,11.3323,2433.8,2432.9,9.3226]
[1747665017438,11.3323,2433.8,2433.4,4.10942895]
[1747665017737,9.94,2433.8,2433.7,4.10896988]
[1747665017935,19.006,2433.8,2433.7,4.10896988]
[1747665018303,9.94,2433.8,2433.7,4.93077949]
[1747665018504,9.065,2434.3,2434.2,4.10812587]
[1747665018838,9.065,2434.5,2434.3,4.10795711]
[1747665019059,9.065,2434.5,2434.4,4.10778836]
[1747665020004,9.065,2434.5,2433.8,1.2958]
[1747665020208,1.3538,2434.4,2434.2,4.1081169]
[1747665020414,1.3538,2434.4,2434.3,4.10795711]
[1747665020843,1.3538,2434.4,2434.2,4.10805892]
[1747665021433,1.3538,2434.4,2433.8,4.320546]
[1747665021626,1.3538,2434.4,2434.0,4.10830573]
[1747665021822,0.55,2434.3,2433.9,0.2297557]
[1747665022024,5.21806179,2434.1,2433.9,0.2297557]
[1747665022333,9.06,2434.0,2433.9,4.10863223]
[1747665022533,1.1097,2434.1,2433.2,5.26039256]
[1747665022734,18.131,2434.0,2433.8,4.10871837]
[1747665023141,18.131,2434.0,2433.9,4.10863223]
[1747665023537,18.131,2434.0,2433.8,4.10870012]
[1747665023738,18.131,2434.0,2433.9,4.10863223]
[1747665024452,18.131,2434.0,2433.7,4.1089574]
[1747665024629,18.131,2434.0,2433.6,4.10905311]
[1747665024954,18.131,2434.0,2433.6,4.10902941]
[1747665025149,18.131,2434.0,2433.3,4.10964533]
[1747665025353,18.131,2434.0,2433.5,4.10930758]
[1747665025354,28.071,2434.0,2433.5,4.10930758]
[1747665025550,19.011,2434.0,2433.9,4.10863223]
[1747665025749,28.067,2434.0,2433.9,4.10863223]
[1747665026863,28.067,2434.0,2433.4,4.63549364]
[1747665027066,28.067,2434.0,2433.9,4.10863223]
[1747665028249,19.011,2434.0,2433.9,4.10863223]
[1747665030625,19.011,2434.0,2433.9,5.041828]
[1747665031347,19.011,2434.0,2433.9,4.10863223]
[1747665034255,19.011,2434.0,2433.8,4.10875739]
[1747665034460,20.1006,2434.0,2433.3,1.1005]
[1747665034646,20.1006,2434.0,2433.6,4.10902003]
[1747665034951,4.65872598,2433.9,2433.5,4.10928765]
[1747665035159,0.55,2433.9,2433.6,4.10901302]
[1747665035368,20.1006,2434.0,2433.9,4.10863223]
[1747665035944,29.1426,2434.0,2433.9,4.10863223]
[1747665037764,29.1406,2434.0,2433.9,4.10863223]
[1747665037970,29.1406,2434.0,2433.5,1.0889]
[1747665038166,29.1406,2434.0,2433.5,1.60872308]
[1747665038464,28.051,2434.0,2433.9,4.10863223]
[1747665040072,9.94,2434.0,2433.9,4.10863223]
[1747665040237,9.94,2434.0,2433.9,5.26843223]
[1747665040570,9.94,2434.0,2433.9,5.49905986]
[1747665040770,9.035,2434.3,2434.2,4.10812587]
[1747665040936,11.1029,2434.5,2433.9,2.35117672]
[1747665041137,9.034,2434.4,2434.2,4.10801467]
[1747665041494,9.034,2434.4,2434.0,4.10837198]
[1747665041650,9.034,2434.4,2434.1,4.10818543]
[1747665041849,9.034,2434.4,2433.9,4.10852443]
[1747665041850,9.034,2434.4,2434.2,4.10811272]
[1747665042784,9.034,2434.4,2434.0,4.10844447]
[1747665043084,4.10796122,2434.3,2433.9,4.1086133]
[1747665043241,1.1362,2434.2,2434.1,4.10822433]
[1747665043739,1.1362,2434.2,2433.9,4.10850057]
[1747665044151,1.1362,2434.2,2433.8,4.10868571]
[1747665044443,11.0762,2434.2,2433.9,4.10852577]
[1747665044845,15.18432823,2434.2,2433.8,4.10876964]
[1747665045051,5.25705037,2434.0,2433.2,1.1811]
[1747665045372,18.607,2433.9,2433.5,4.10919683]
[1747665045684,18.607,2433.9,2433.6,4.10905598]
[1747665045845,22.7157215,2433.9,2433.5,4.10923717]
[1747665046045,18.607,2433.9,2433.6,4.10911813]
[1747665046595,18.607,2433.9,2433.7,4.10895861]
[1747665046738,18.607,2433.9,2433.5,4.10923591]
[1747665046739,18.607,2433.9,2433.6,4.10903999]
[1747665046936,18.607,2433.9,2433.1,4.10982203]
[1747665047143,1.1237,2433.7,2433.3,4.10960018]
[1747665047378,1.1237,2433.7,2433.5,4.10921521]
[1747665047797,5.23271567,2433.7,2433.2,4.10970586]
[1747665047998,5.23271567,2433.7,2432.8,1.1849]
[1747665047999,0.55,2433.6,2432.8,1.1849]
[1747665048300,0.55,2433.6,2433.4,4.10945739]
[1747665048507,0.55,2433.6,2432.8,1.1849]
[1747665048653,1.162,2433.5,2433.0,4.11012907]
[1747665048855,18.054,2433.4,2433.1,4.10998314]
[1747665049128,18.054,2433.4,2433.1,4.34054555]
[1747665049307,18.054,2433.4,2433.2,4.10972039]
[1747665049594,18.054,2433.4,2433.3,4.10964533]
[1747665049801,18.054,2433.4,2432.9,1.1809]
[1747665049999,18.054,2433.4,2433.3,4.10964533]
[1747665050380,18.054,2433.4,2433.3,4.23804036]
[1747665050557,18.054,2433.4,2433.3,4.23803636]
[1747665050790,18.054,2433.4,2433.3,4.10964533]
[1747665050988,18.054,2433.4,2433.3,4.23803634]
[1747665051293,18.054,2433.4,2433.3,0.12839128]
[1747665051789,18.054,2433.4,2433.1,4.109848]
[1747665052019,18.054,2433.4,2433.2,4.23820974]
[1747665052158,18.36826938,2433.4,2433.2,4.23820974]
[1747665052359,18.36826938,2433.4,2433.2,4.10981294]
[1747665052606,18.36826938,2433.4,2432.7,1.0882]
[1747665052781,18.36826938,2433.4,2433.2,4.10978356]
[1747665053192,18.36826938,2433.4,2433.3,4.10964533]
[1747665053672,18.054,2433.4,2433.3,4.10964533]
[1747665053997,18.047,2433.4,2433.3,4.10964533]
[1747665055360,18.047,2433.4,2433.1,4.10990768]
[1747665055561,18.047,2433.4,2433.2,4.10973671]
[1747665056162,18.047,2433.4,2433.2,4.10980433]
[1747665056496,18.047,2433.4,2433.2,4.10980788]
[1747665057307,18.047,2433.4,2433.3,4.10964533]
[1747665058021,1.1779,2433.6,2433.3,4.10964533]
[1747665058226,18.043,2433.4,2433.1,4.10983908]
[1747665058519,18.043,2433.4,2433.2,4.10973135]
[1747665059085,18.043,2433.4,2433.1,4.10996327]
[1747665059283,18.043,2433.4,2433.2,4.10977563]
[1747665059487,9.01,2433.3,2433.2,4.10977563]
[1747665060192,9.01,2433.3,2432.7,0.9675]
[1747665060520,9.01,2433.3,2433.1,4.10997868]
[1747665061126,0.9698,2433.2,2433.0,4.11014634]
[1747665062025,9.01,2433.3,2433.1,4.10998314]
[1747665062229,10.0083,2433.4,2432.7,4.11065893]
[1747665062437,10.0083,2433.4,2433.3,4.10964533]
[1747665062604,18.036,2433.4,2433.3,4.10964533]
[1747665064630,9.031,2433.4,2433.3,4.10964533]
[1747665064810,18.034,2433.4,2433.3,4.10964533]
[1747665066111,18.034,2433.4,2433.1,4.10985322]
[1747665066447,18.034,2433.4,2433.3,4.10964533]
[1747665069513,9.031,2433.4,2433.3,4.10964533]
[1747665069710,18.026,2433.4,2433.3,4.10964533]
[1747665071038,18.026,2433.4,2433.0,4.11003877]
[1747665071239,18.026,2433.4,2433.3,4.10964533]
[1747665073412,18.021,2433.4,2433.3,5.91668705]
[1747665073612,9.031,2433.4,2433.3,5.91668705]
[1747665073812,17.744,2434.0,2433.9,4.10863223]
[1747665074006,0.9537,2434.6,2433.9,4.10863223]
[1747665074205,17.749,2434.8,2434.7,4.10728221]
[1747665074206,26.781,2434.8,2434.7,4.10728221]
[1747665074520,17.749,2434.8,2434.7,4.10728221]
[1747665074711,26.737,2434.8,2434.7,4.10728221]
[1747665075238,9.038,2434.9,2434.8,4.10711352]
[1747665075643,9.038,2434.9,2434.7,4.107155]
[1747665075937,9.038,2434.9,2434.8,4.10711352]
[1747665076349,0.05,2434.9,2434.8,5.04221352]
[1747665076968,0.05,2434.9,2434.8,4.10711352]
[1747665078258,0.05,2434.9,2434.7,4.1072169]
[1747665078554,0.05,2434.9,2434.1,4.10827547]
[1747665078757,1.0412,2434.9,2434.2,0.41082755]
[1747665078957,8.985,2434.8,2434.7,4.10728221]
[1747665079352,8.985,2434.8,2434.5,4.10753347]
[1747665079546,8.985,2434.8,2434.6,4.10733604]
[1747665079752,8.985,2434.8,2434.7,4.10728221]
[1747665079950,8.985,2434.8,2434.6,4.10737192]
[1747665080149,8.985,2434.8,2434.7,4.10728221]